[Event "Early-Titled-Tuesday-Blitz-June-18-2024"]
[Site "Chess.com"]
[Date "2024.06.18"]
[Round "5"]
[White "lamomiajunior"]
[Black "chess_peak"]
[Result "1-0"]
[WhiteElo "2733"]
[BlackElo "2516"]
[TimeControl "180+1"]
[EndTime "8:57:57 PDT"]
[Termination "lamomiajunior won on time"]

1. e4 {[%clk 0:03:00.9]} 1... c5 {[%clk 0:02:59.1]} 2. Nf3 {[%clk 0:03:00.9]}
2... Nc6 {[%clk 0:02:58.2]} 3. Bb5 {[%clk 0:03:00.2]} 3... e6 {[%clk 0:02:58.2]}
4. O-O {[%clk 0:02:56.6]} 4... Nge7 {[%clk 0:02:57.7]} 5. Re1 {[%clk 0:02:56.7]}
5... Nd4 {[%clk 0:02:57.5]} 6. Nxd4 {[%clk 0:02:53.8]} 6... cxd4 {[%clk
0:02:58.4]} 7. c3 {[%clk 0:02:53.5]} 7... a6 {[%clk 0:02:58.5]} 8. Bf1 {[%clk
0:02:53.1]} 8... Nc6 {[%clk 0:02:58.8]} 9. cxd4 {[%clk 0:02:36.3]} 9... Nxd4
{[%clk 0:02:57.8]} 10. d3 {[%clk 0:02:35.2]} 10... Bc5 {[%clk 0:02:37.8]} 11.
Be3 {[%clk 0:02:34.2]} 11... O-O {[%clk 0:02:32.9]} 12. Nd2 {[%clk 0:02:31.6]}
12... d6 {[%clk 0:02:23.9]} 13. g3 {[%clk 0:02:24.4]} 13... e5 {[%clk
0:02:21.2]} 14. Bg2 {[%clk 0:02:23]} 14... Be6 {[%clk 0:02:14.6]} 15. f4 {[%clk
0:02:20.6]} 15... Qb6 {[%clk 0:01:39.3]} 16. Kh1 {[%clk 0:00:33.2]} 16... Qxb2
{[%clk 0:01:37.7]} 17. f5 {[%clk 0:00:30.2]} 17... Bxa2 {[%clk 0:01:36.6]} 18.
Rc1 {[%clk 0:00:17.2]} 18... b5 {[%clk 0:01:05.2]} 19. f6 {[%clk 0:00:16.6]}
19... Be6 {[%clk 0:00:19.5]} 20. Bxd4 {[%clk 0:00:13.8]} 20... Bxd4 {[%clk
0:00:18.8]} 21. Nf3 {[%clk 0:00:11.4]} 21... Rfc8 {[%clk 0:00:14.6]} 22. Rb1
{[%clk 0:00:11.3]} 22... Qc2 {[%clk 0:00:14.3]} 23. Nxd4 {[%clk 0:00:11]} 23...
Qxd1 {[%clk 0:00:13.7]} 24. Rbxd1 {[%clk 0:00:10.8]} 24... exd4 {[%clk
0:00:14.1]} 25. e5 {[%clk 0:00:11.7]} 25... d5 {[%clk 0:00:13.6]} 26. h3 {[%clk
0:00:09.3]} 26... b4 {[%clk 0:00:13]} 27. Ra1 {[%clk 0:00:08.8]} 27... a5 {[%clk
0:00:12.6]} 28. Reb1 {[%clk 0:00:08.9]} 28... Rcb8 {[%clk 0:00:12.1]} 29. Kg1
{[%clk 0:00:08.8]} 29... a4 {[%clk 0:00:11.1]} 30. Kf2 {[%clk 0:00:09.6]} 30...
b3 {[%clk 0:00:05.5]} 31. Ra3 {[%clk 0:00:10]} 31... Rb4 {[%clk 0:00:05.8]} 32.
Ke2 {[%clk 0:00:10.2]} 32... Rc8 {[%clk 0:00:05.9]} 33. Rb2 {[%clk 0:00:10.3]}
33... Rc2+ {[%clk 0:00:06.1]} 34. Rxc2 {[%clk 0:00:10.8]} 34... bxc2 {[%clk
0:00:04.8]} 35. Kd2 {[%clk 0:00:11.3]} 1-0

[Event "Early-Titled-Tuesday-Blitz-June-18-2024"]
[Site "Chess.com"]
[Date "2024.06.18"]
[Round "5"]
[White "Brown_Bear_MGL"]
[Black "twofoxniel"]
[Result "0-1"]
[WhiteElo "2499"]
[BlackElo "2686"]
[TimeControl "180+1"]
[EndTime "8:57:58 PDT"]
[Termination "twofoxniel won by resignation"]

1. b3 {[%clk 0:03:00.9]} 1... d5 {[%clk 0:02:59.6]} 2. Bb2 {[%clk 0:02:59.7]}
2... c6 {[%clk 0:03:00]} 3. Nf3 {[%clk 0:02:49.5]} 3... Nf6 {[%clk 0:02:59.6]}
4. e3 {[%clk 0:02:39.2]} 4... Bf5 {[%clk 0:02:59.3]} 5. Nh4 {[%clk 0:02:37.7]}
5... Bg4 {[%clk 0:02:55.8]} 6. Be2 {[%clk 0:02:37.7]} 6... Bxe2 {[%clk
0:02:55.7]} 7. Qxe2 {[%clk 0:02:38.6]} 7... e6 {[%clk 0:02:56.3]} 8. f4 {[%clk
0:02:38]} 8... Nbd7 {[%clk 0:02:55.5]} 9. Nf3 {[%clk 0:02:37.3]} 9... Be7 {[%clk
0:02:55.2]} 10. O-O {[%clk 0:02:37.1]} 10... O-O {[%clk 0:02:55.8]} 11. d3
{[%clk 0:02:34.8]} 11... a5 {[%clk 0:02:52.3]} 12. Nbd2 {[%clk 0:02:29.7]} 12...
a4 {[%clk 0:02:52.2]} 13. Ne5 {[%clk 0:02:29.8]} 13... Nxe5 {[%clk 0:02:48.4]}
14. fxe5 {[%clk 0:02:28.9]} 14... Nd7 {[%clk 0:02:48.7]} 15. Rf4 {[%clk
0:02:15]} 15... Qb6 {[%clk 0:02:38.9]} 16. Bd4 {[%clk 0:01:27.6]} 16... c5
{[%clk 0:02:37.7]} 17. Bc3 {[%clk 0:01:28.2]} 17... axb3 {[%clk 0:02:35]} 18.
axb3 {[%clk 0:01:25]} 18... Rxa1+ {[%clk 0:02:33.8]} 19. Bxa1 {[%clk 0:01:25.9]}
19... Qa5 {[%clk 0:02:26.5]} 20. Ra4 {[%clk 0:01:24.1]} 20... Qc7 {[%clk
0:02:24.5]} 21. Nf3 {[%clk 0:01:21.7]} 21... b5 {[%clk 0:02:21.6]} 22. Ra2
{[%clk 0:01:15.9]} 22... f6 {[%clk 0:01:52.1]} 23. Ra6 {[%clk 0:01:08.8]} 23...
fxe5 {[%clk 0:01:39.4]} 24. Nxe5 {[%clk 0:01:04.7]} 24... Nxe5 {[%clk
0:01:33.4]} 25. Rxe6 {[%clk 0:01:00.4]} 25... Bf6 {[%clk 0:01:27.3]} 26. d4
{[%clk 0:00:50]} 26... Ng6 {[%clk 0:01:21.4]} 27. Qxb5 {[%clk 0:00:47.4]} 27...
h6 {[%clk 0:01:12.2]} 28. Rc6 {[%clk 0:00:41.7]} 28... Qa7 {[%clk 0:01:11.5]}
29. Bc3 {[%clk 0:00:39.1]} 29... Qa2 {[%clk 0:00:58.6]} 30. h3 {[%clk 0:00:20]}
30... Qxc2 {[%clk 0:00:57.5]} 31. Qxc5 {[%clk 0:00:19]} 31... Kh7 {[%clk
0:00:55.5]} 32. Qxd5 {[%clk 0:00:18.1]} 32... Qc1+ {[%clk 0:00:44.2]} 33. Kh2
{[%clk 0:00:17.7]} 33... Qxe3 {[%clk 0:00:44.4]} 34. Qd6 {[%clk 0:00:13.6]}
34... Rd8 {[%clk 0:00:43.3]} 35. Qc7 {[%clk 0:00:12.3]} 35... Re8 {[%clk
0:00:41.3]} 36. Qf7 {[%clk 0:00:09.1]} 36... Re7 {[%clk 0:00:39.6]} 37. Qd5
{[%clk 0:00:08.3]} 37... Qf4+ {[%clk 0:00:39.5]} 38. Kg1 {[%clk 0:00:08.7]}
38... Re2 {[%clk 0:00:34.1]} 39. Rc8 {[%clk 0:00:07.6]} 39... Ne7 {[%clk
0:00:32.8]} 40. Qc4 {[%clk 0:00:03.5]} 40... Qf2+ {[%clk 0:00:31.8]} 0-1

[Event "Early-Titled-Tuesday-Blitz-June-18-2024"]
[Site "Chess.com"]
[Date "2024.06.18"]
[Round "5"]
[White "suyu28"]
[Black "Eliwood44"]
[Result "1-0"]
[WhiteElo "2772"]
[BlackElo "2485"]
[TimeControl "180+1"]
[EndTime "8:57:59 PDT"]
[Termination "suyu28 won by checkmate"]

1. d4 {[%clk 0:02:58.6]} 1... Nf6 {[%clk 0:02:55.5]} 2. c4 {[%clk 0:02:58]} 2...
e6 {[%clk 0:02:56]} 3. Nc3 {[%clk 0:02:56.2]} 3... d5 {[%clk 0:02:56.6]} 4. cxd5
{[%clk 0:02:54.1]} 4... exd5 {[%clk 0:02:57.5]} 5. Bg5 {[%clk 0:02:51.6]} 5...
c6 {[%clk 0:02:57.6]} 6. e3 {[%clk 0:02:50.7]} 6... h6 {[%clk 0:02:57.6]} 7. Bf4
{[%clk 0:02:46.7]} 7... Bd6 {[%clk 0:02:57.1]} 8. Bd3 {[%clk 0:02:45.1]} 8...
O-O {[%clk 0:02:56.7]} 9. Bg3 {[%clk 0:02:42.2]} 9... Re8 {[%clk 0:02:56.6]} 10.
Nf3 {[%clk 0:02:41.1]} 10... Bg4 {[%clk 0:02:56.3]} 11. Qc2 {[%clk 0:02:38.5]}
11... Bxf3 {[%clk 0:02:50.4]} 12. gxf3 {[%clk 0:02:38.1]} 12... c5 {[%clk
0:02:46.5]} 13. Bxd6 {[%clk 0:02:26.8]} 13... Qxd6 {[%clk 0:02:41]} 14. Nb5
{[%clk 0:02:27]} 14... Qd8 {[%clk 0:02:19.8]} 15. dxc5 {[%clk 0:02:21.9]} 15...
Nc6 {[%clk 0:02:18.9]} 16. a3 {[%clk 0:02:18]} 16... d4 {[%clk 0:02:16.9]} 17.
O-O-O {[%clk 0:02:11.4]} 17... Nd5 {[%clk 0:01:58.5]} 18. Bc4 {[%clk 0:02:00.3]}
18... a6 {[%clk 0:01:37.3]} 19. Nd6 {[%clk 0:01:57.3]} 19... Re5 {[%clk
0:01:36]} 20. f4 {[%clk 0:01:47.3]} 20... Rh5 {[%clk 0:01:35]} 21. e4 {[%clk
0:01:22.7]} 21... d3 {[%clk 0:01:12.5]} 22. Rxd3 {[%clk 0:01:16.4]} 22... Nxf4
{[%clk 0:01:12.2]} 23. Bxf7+ {[%clk 0:01:15.8]} 23... Kh7 {[%clk 0:01:06.1]} 24.
Bxh5 {[%clk 0:01:15.8]} 24... Nxd3+ {[%clk 0:01:06]} 25. Qxd3 {[%clk 0:01:03.7]}
25... Qg5+ {[%clk 0:01:04.6]} 26. Kb1 {[%clk 0:01:03.8]} 26... Qxh5 {[%clk
0:01:04.1]} 27. e5+ {[%clk 0:01:04]} 27... Kh8 {[%clk 0:01:03.4]} 28. f4 {[%clk
0:01:00.9]} 28... Rf8 {[%clk 0:01:00.6]} 29. Qe4 {[%clk 0:00:53.9]} 29... Qh4
{[%clk 0:00:52.1]} 30. Rf1 {[%clk 0:00:51.5]} 30... Qxh2 {[%clk 0:00:48.6]} 31.
e6 {[%clk 0:00:50.6]} 31... Ne7 {[%clk 0:00:38.5]} 32. f5 {[%clk 0:00:33.8]}
32... b6 {[%clk 0:00:25.6]} 33. Rh1 {[%clk 0:00:28.4]} 33... Qf2 {[%clk
0:00:18.6]} 34. cxb6 {[%clk 0:00:26.9]} 34... Qxb6 {[%clk 0:00:14.3]} 35. Nf7+
{[%clk 0:00:26.8]} 35... Kg8 {[%clk 0:00:13.9]} 36. f6 {[%clk 0:00:24.1]} 36...
Rb8 {[%clk 0:00:09.1]} 37. Nxh6+ {[%clk 0:00:19.2]} 37... gxh6 {[%clk
0:00:05.8]} 38. Qg4+ {[%clk 0:00:19]} 38... Kf8 {[%clk 0:00:05.3]} 39. Qg7+
{[%clk 0:00:19]} 39... Ke8 {[%clk 0:00:05.8]} 40. Qxe7# {[%clk 0:00:19.3]} 1-0

[Event "Early-Titled-Tuesday-Blitz-June-18-2024"]
[Site "Chess.com"]
[Date "2024.06.18"]
[Round "5"]
[White "SoCalJuniorChess"]
[Black "GMT4114"]
[Result "1-0"]
[WhiteElo "2218"]
[BlackElo "1937"]
[TimeControl "180+1"]
[EndTime "8:57:59 PDT"]
[Termination "SoCalJuniorChess won on time"]

1. d4 {[%clk 0:03:00.9]} 1... e6 {[%clk 0:02:59.1]} 2. Nc3 {[%clk 0:03:00.9]}
2... Bb4 {[%clk 0:02:56.8]} 3. Qd3 {[%clk 0:02:59.6]} 3... d5 {[%clk 0:02:50.3]}
4. a3 {[%clk 0:02:59.4]} 4... Bxc3+ {[%clk 0:02:50.3]} 5. Qxc3 {[%clk
0:02:58.5]} 5... Nf6 {[%clk 0:02:49.6]} 6. Bg5 {[%clk 0:02:34]} 6... Nbd7 {[%clk
0:02:49.6]} 7. Qd3 {[%clk 0:02:31.8]} 7... h6 {[%clk 0:02:49.3]} 8. Bh4 {[%clk
0:02:31.3]} 8... b6 {[%clk 0:02:46.3]} 9. f3 {[%clk 0:02:31.1]} 9... Bb7 {[%clk
0:02:46.2]} 10. Nh3 {[%clk 0:02:20.6]} 10... c5 {[%clk 0:02:46]} 11. Nf2 {[%clk
0:02:20.8]} 11... c4 {[%clk 0:02:42.6]} 12. Qd2 {[%clk 0:02:20.1]} 12... Qc7
{[%clk 0:02:39.5]} 13. Bg3 {[%clk 0:02:19.5]} 13... Qc6 {[%clk 0:02:38.1]} 14.
h4 {[%clk 0:02:11.8]} 14... b5 {[%clk 0:02:37.9]} 15. a4 {[%clk 0:02:06.2]}
15... b4 {[%clk 0:02:30.3]} 16. Qxb4 {[%clk 0:02:04.2]} 16... a5 {[%clk
0:02:30.8]} 17. Qd6 {[%clk 0:02:03]} 17... Nh5 {[%clk 0:02:14.1]} 18. Qxc6
{[%clk 0:02:01]} 18... Bxc6 {[%clk 0:02:15]} 19. Bd6 {[%clk 0:02:01.4]} 19...
Nb6 {[%clk 0:02:12.2]} 20. g4 {[%clk 0:02:00.6]} 20... Nf6 {[%clk 0:02:10]} 21.
e3 {[%clk 0:02:01.1]} 21... Nxa4 {[%clk 0:02:02.6]} 22. b3 {[%clk 0:02:00.4]}
22... cxb3 {[%clk 0:01:48.5]} 23. cxb3 {[%clk 0:02:00]} 23... Nb6 {[%clk
0:01:48.9]} 24. Bc7 {[%clk 0:01:57.8]} 24... Nfd7 {[%clk 0:01:48.4]} 25. e4
{[%clk 0:01:52.6]} 25... O-O {[%clk 0:01:45.7]} 26. e5 {[%clk 0:01:49.7]} 26...
Rfc8 {[%clk 0:01:45.4]} 27. Bd6 {[%clk 0:01:48.7]} 27... Ra7 {[%clk 0:01:15.7]}
28. Bd3 {[%clk 0:01:46.4]} 28... a4 {[%clk 0:01:10.4]} 29. bxa4 {[%clk
0:01:38.6]} 29... Rxa4 {[%clk 0:01:04.6]} 30. Rxa4 {[%clk 0:01:35]} 30... Bxa4
{[%clk 0:01:04.9]} 31. O-O {[%clk 0:01:32.1]} 31... Nc4 {[%clk 0:01:05.1]} 32.
Rc1 {[%clk 0:01:29.9]} 32... Nxd6 {[%clk 0:01:01.9]} 33. Ra1 {[%clk 0:01:29.5]}
33... Bb5 {[%clk 0:00:22.6]} 34. exd6 {[%clk 0:01:27.7]} 34... Bc4 {[%clk
0:00:19.5]} 35. Ra7 {[%clk 0:01:21.2]} 35... Nb6 {[%clk 0:00:16.2]} 36. Rb7
{[%clk 0:01:17.5]} 36... Bxd3 {[%clk 0:00:10.8]} 37. Rxb6 {[%clk 0:01:14.9]}
37... Bc4 {[%clk 0:00:10.1]} 38. Rb7 {[%clk 0:01:08.4]} 38... Rd8 {[%clk
0:00:10.3]} 39. Rb6 {[%clk 0:01:01.6]} 39... Kf8 {[%clk 0:00:09]} 40. Nd1 {[%clk
0:01:01.5]} 40... Be2 {[%clk 0:00:04.9]} 41. Nb2 {[%clk 0:00:54.6]} 41... Bxf3
{[%clk 0:00:05]} 42. Nd3 {[%clk 0:00:55.3]} 42... Bxg4 {[%clk 0:00:04.3]} 43.
Ne5 {[%clk 0:00:55.9]} 43... Be2 {[%clk 0:00:02.9]} 44. Rb7 {[%clk 0:00:53.8]}
44... Bh5 {[%clk 0:00:01.5]} 45. Nc6 {[%clk 0:00:44]} 1-0

[Event "Early-Titled-Tuesday-Blitz-June-18-2024"]
[Site "Chess.com"]
[Date "2024.06.18"]
[Round "5"]
[White "eltenedor"]
[Black "ALRS-SPS"]
[Result "0-1"]
[WhiteElo "2130"]
[BlackElo "2373"]
[TimeControl "180+1"]
[EndTime "8:58:00 PDT"]
[Termination "ALRS-SPS won by checkmate"]

1. f4 {[%clk 0:03:00.9]} 1... e5 {[%clk 0:02:59.2]} 2. fxe5 {[%clk 0:03:00.3]}
2... d6 {[%clk 0:02:59.8]} 3. exd6 {[%clk 0:03:00.3]} 3... Bxd6 {[%clk
0:03:00.2]} 4. Nf3 {[%clk 0:03:00.8]} 4... Nf6 {[%clk 0:03:00.2]} 5. e3 {[%clk
0:02:47.4]} 5... O-O {[%clk 0:02:59.8]} 6. Be2 {[%clk 0:02:39]} 6... Bg4 {[%clk
0:02:59]} 7. O-O {[%clk 0:02:34.5]} 7... Nc6 {[%clk 0:02:53.8]} 8. Nc3 {[%clk
0:02:12.9]} 8... Qe7 {[%clk 0:02:50.9]} 9. Nb5 {[%clk 0:02:04.2]} 9... Bxf3
{[%clk 0:02:39.2]} 10. Bxf3 {[%clk 0:01:11.1]} 10... Bxh2+ {[%clk 0:02:27.3]}
11. Kxh2 {[%clk 0:01:09.3]} 11... Qe5+ {[%clk 0:02:27.3]} 12. Kg1 {[%clk
0:01:08.7]} 12... Qxb5 {[%clk 0:02:26.9]} 13. d4 {[%clk 0:01:05.2]} 13... Rad8
{[%clk 0:02:24.5]} 14. c3 {[%clk 0:01:04.9]} 14... Rfe8 {[%clk 0:02:21.6]} 15.
Qc2 {[%clk 0:01:02.1]} 15... Ne7 {[%clk 0:02:01]} 16. e4 {[%clk 0:00:57.4]}
16... Ng6 {[%clk 0:01:56.8]} 17. e5 {[%clk 0:00:54.4]} 17... Nd7 {[%clk
0:01:41.5]} 18. a4 {[%clk 0:00:46.7]} 18... Qc4 {[%clk 0:01:35.3]} 19. Bxb7
{[%clk 0:00:34.7]} 19... c5 {[%clk 0:01:34.6]} 20. b3 {[%clk 0:00:27.4]} 20...
Qe6 {[%clk 0:01:31.8]} 21. Be4 {[%clk 0:00:26]} 21... cxd4 {[%clk 0:01:29.8]}
22. cxd4 {[%clk 0:00:26.9]} 22... Rc8 {[%clk 0:01:29.6]} 23. Qd3 {[%clk
0:00:25]} 23... Red8 {[%clk 0:01:24.9]} 24. Bf5 {[%clk 0:00:23.4]} 24... Qb6
{[%clk 0:01:17.7]} 25. Be3 {[%clk 0:00:18.9]} 25... Rb8 {[%clk 0:01:08.2]} 26.
Qe4 {[%clk 0:00:18.2]} 26... Qxb3 {[%clk 0:01:05.6]} 27. e6 {[%clk 0:00:15.4]}
27... Nf6 {[%clk 0:01:02.1]} 28. exf7+ {[%clk 0:00:15.2]} 28... Qxf7 {[%clk
0:00:45.8]} 29. Qc2 {[%clk 0:00:09.9]} 29... Qe7 {[%clk 0:00:42.3]} 30. Bf2
{[%clk 0:00:08.2]} 30... Rbc8 {[%clk 0:00:41]} 31. Qb1 {[%clk 0:00:06.8]} 31...
Nf4 {[%clk 0:00:39.6]} 32. Bxc8 {[%clk 0:00:04.1]} 32... Rxc8 {[%clk 0:00:38.3]}
33. Re1 {[%clk 0:00:04.1]} 33... Qd7 {[%clk 0:00:36.7]} 34. Qd1 {[%clk
0:00:02.3]} 34... Qd5 {[%clk 0:00:36.2]} 35. Qf3 {[%clk 0:00:02.4]} 35... Qg5
{[%clk 0:00:35.7]} 36. Re3 {[%clk 0:00:01]} 36... Rf8 {[%clk 0:00:34.9]} 37. Re5
{[%clk 0:00:01.1]} 37... Qh6 {[%clk 0:00:33.4]} 38. Rae1 {[%clk 0:00:01.5]}
38... Ng6 {[%clk 0:00:28.5]} 39. Qb3+ {[%clk 0:00:02.4]} 39... Kh8 {[%clk
0:00:28.3]} 40. Re6 {[%clk 0:00:02.1]} 40... Ng4 {[%clk 0:00:26.5]} 41. Re8
{[%clk 0:00:01.4]} 41... Qf4 {[%clk 0:00:26]} 42. Rxf8+ {[%clk 0:00:01.2]} 42...
Nxf8 {[%clk 0:00:26.9]} 43. Rf1 {[%clk 0:00:01.3]} 43... Qh2# {[%clk 0:00:26.9]}
0-1

[Event "Early-Titled-Tuesday-Blitz-June-18-2024"]
[Site "Chess.com"]
[Date "2024.06.18"]
[Round "5"]
[White "Seppppppy"]
[Black "Boudicca64"]
[Result "1-0"]
[WhiteElo "2187"]
[BlackElo "1824"]
[TimeControl "180+1"]
[EndTime "8:58:00 PDT"]
[Termination "Seppppppy won on time"]

1. d4 {[%clk 0:03:00.9]} 1... Nf6 {[%clk 0:02:57.3]} 2. c4 {[%clk 0:03:01]} 2...
g6 {[%clk 0:02:56.3]} 3. Nc3 {[%clk 0:02:59.8]} 3... Bg7 {[%clk 0:02:55.8]} 4.
e4 {[%clk 0:03:00.3]} 4... d6 {[%clk 0:02:55.9]} 5. h3 {[%clk 0:03:00.3]} 5...
O-O {[%clk 0:02:55.4]} 6. Be3 {[%clk 0:03:00.1]} 6... e5 {[%clk 0:02:54.6]} 7.
d5 {[%clk 0:02:58.4]} 7... Nh5 {[%clk 0:02:53.9]} 8. g3 {[%clk 0:02:51.3]} 8...
a6 {[%clk 0:02:40.6]} 9. Nge2 {[%clk 0:02:50.6]} 9... f5 {[%clk 0:02:39]} 10.
exf5 {[%clk 0:02:15.3]} 10... gxf5 {[%clk 0:02:37]} 11. g4 {[%clk 0:02:14.6]}
11... f4 {[%clk 0:02:30.2]} 12. Bd2 {[%clk 0:02:00.7]} 12... f3 {[%clk
0:02:26.3]} 13. gxh5 {[%clk 0:01:54]} 13... fxe2 {[%clk 0:02:24.5]} 14. Bxe2
{[%clk 0:01:54.9]} 14... Qh4 {[%clk 0:02:22.7]} 15. Be3 {[%clk 0:01:52.2]} 15...
Nd7 {[%clk 0:01:34]} 16. Qd2 {[%clk 0:01:40.6]} 16... Nc5 {[%clk 0:01:30.3]} 17.
h6 {[%clk 0:01:36.6]} 17... Bf6 {[%clk 0:01:16]} 18. O-O-O {[%clk 0:01:33.6]}
18... b5 {[%clk 0:01:03.1]} 19. Rdg1+ {[%clk 0:01:30.7]} 19... Kh8 {[%clk
0:01:01.4]} 20. Bxc5 {[%clk 0:00:30.2]} 20... dxc5 {[%clk 0:00:57]} 21. d6
{[%clk 0:00:30.6]} 21... Qd4 {[%clk 0:00:27.5]} 22. Qxd4 {[%clk 0:00:27]} 22...
cxd4 {[%clk 0:00:26.3]} 23. Nd5 {[%clk 0:00:24]} 23... cxd6 {[%clk 0:00:25.2]}
24. Rg2 {[%clk 0:00:17.3]} 24... Bb7 {[%clk 0:00:22.5]} 25. Kb1 {[%clk
0:00:11.9]} 25... Bxd5 {[%clk 0:00:18.8]} 26. cxd5 {[%clk 0:00:12.8]} 26... Rg8
{[%clk 0:00:14.8]} 27. Bg4 {[%clk 0:00:10.6]} 27... Rg6 {[%clk 0:00:08.3]} 28.
Rhg1 {[%clk 0:00:09.6]} 28... Rag8 {[%clk 0:00:06.7]} 29. Bf3 {[%clk 0:00:05.9]}
29... Rxg2 {[%clk 0:00:03.5]} 30. Rxg2 {[%clk 0:00:06.8]} 30... Rxg2 {[%clk
0:00:01.8]} 31. Bxg2 {[%clk 0:00:07.7]} 31... Bg5 {[%clk 0:00:01.7]} 32. Kc2
{[%clk 0:00:08.6]} 32... Bxh6 {[%clk 0:00:01.4]} 33. Kd3 {[%clk 0:00:09.5]}
33... Bf4 {[%clk 0:00:01.3]} 34. Ke4 {[%clk 0:00:10.4]} 1-0

[Event "Early-Titled-Tuesday-Blitz-June-18-2024"]
[Site "Chess.com"]
[Date "2024.06.18"]
[Round "5"]
[White "Zavgorodniy_Sergiy"]
[Black "Roedor"]
[Result "1-0"]
[WhiteElo "2598"]
[BlackElo "2413"]
[TimeControl "180+1"]
[EndTime "8:58:02 PDT"]
[Termination "Zavgorodniy_Sergiy won on time"]

1. e4 {[%clk 0:03:00.9]} 1... e5 {[%clk 0:02:57]} 2. Nf3 {[%clk 0:02:59.6]} 2...
Nc6 {[%clk 0:02:56.2]} 3. Bb5 {[%clk 0:02:59.1]} 3... Nf6 {[%clk 0:02:55.7]} 4.
Bxc6 {[%clk 0:02:57.1]} 4... dxc6 {[%clk 0:02:55.5]} 5. d3 {[%clk 0:02:56.2]}
5... Bd6 {[%clk 0:02:55.6]} 6. O-O {[%clk 0:02:55.2]} 6... O-O {[%clk
0:02:55.3]} 7. Bg5 {[%clk 0:02:53.6]} 7... h6 {[%clk 0:02:55]} 8. Bh4 {[%clk
0:02:52.6]} 8... g5 {[%clk 0:02:53.6]} 9. Nxg5 {[%clk 0:02:49.6]} 9... hxg5
{[%clk 0:02:54.5]} 10. Bxg5 {[%clk 0:02:49.6]} 10... Be7 {[%clk 0:02:54.7]} 11.
Nd2 {[%clk 0:02:42.5]} 11... Nh7 {[%clk 0:02:54.6]} 12. Bh6 {[%clk 0:02:38.4]}
12... Bg5 {[%clk 0:02:49]} 13. Bxf8 {[%clk 0:02:37.1]} 13... Qxf8 {[%clk
0:02:49.9]} 14. Nf3 {[%clk 0:02:34.9]} 14... Bg4 {[%clk 0:02:49.5]} 15. h3
{[%clk 0:02:34]} 15... Bh5 {[%clk 0:02:47.8]} 16. g4 {[%clk 0:02:33.5]} 16...
Bg6 {[%clk 0:02:45.9]} 17. Nxe5 {[%clk 0:02:32.7]} 17... Qh6 {[%clk 0:02:43.3]}
18. Qf3 {[%clk 0:02:22.3]} 18... Bf4 {[%clk 0:02:42.1]} 19. Nxg6 {[%clk
0:02:17.1]} 19... fxg6 {[%clk 0:02:43]} 20. h4 {[%clk 0:02:10]} 20... Rf8 {[%clk
0:02:26.2]} 21. Qh1 {[%clk 0:02:09.6]} 21... g5 {[%clk 0:02:20.8]} 22. h5 {[%clk
0:02:07.6]} 22... Be5 {[%clk 0:02:01.2]} 23. c3 {[%clk 0:02:04.6]} 23... c5
{[%clk 0:01:56.7]} 24. Rad1 {[%clk 0:02:02.3]} 24... Qf6 {[%clk 0:01:42]} 25.
Qg2 {[%clk 0:02:00]} 25... Rd8 {[%clk 0:01:34.7]} 26. Rfe1 {[%clk 0:01:58.4]}
26... Nf8 {[%clk 0:01:30.6]} 27. d4 {[%clk 0:01:54.9]} 27... cxd4 {[%clk
0:01:30.4]} 28. cxd4 {[%clk 0:01:54.8]} 28... Rxd4 {[%clk 0:01:28.3]} 29. Rxd4
{[%clk 0:01:53.1]} 29... Bxd4 {[%clk 0:01:28.7]} 30. e5 {[%clk 0:01:53.6]} 30...
Qe6 {[%clk 0:01:19.1]} 31. Qe4 {[%clk 0:01:42.8]} 31... c5 {[%clk 0:01:15.9]}
32. b4 {[%clk 0:01:39.3]} 32... b6 {[%clk 0:01:15.8]} 33. bxc5 {[%clk
0:01:39.1]} 33... bxc5 {[%clk 0:01:16.1]} 34. Qf5 {[%clk 0:01:20.1]} 34... Qxf5
{[%clk 0:00:36.3]} 35. gxf5 {[%clk 0:01:21]} 35... Nd7 {[%clk 0:00:36.7]} 36. e6
{[%clk 0:01:13.9]} 36... Nf6 {[%clk 0:00:25.8]} 37. h6 {[%clk 0:01:13.9]} 37...
g4 {[%clk 0:00:16.6]} 38. Kg2 {[%clk 0:01:04.6]} 38... Kh7 {[%clk 0:00:07.7]}
39. e7 {[%clk 0:00:43]} 39... Ne8 {[%clk 0:00:07.7]} 40. Re6 {[%clk 0:00:43.6]}
40... c4 {[%clk 0:00:06.8]} 41. Kg3 {[%clk 0:00:39.4]} 41... c3 {[%clk 0:00:06]}
42. Kxg4 {[%clk 0:00:39.5]} 42... Bc5 {[%clk 0:00:04.2]} 43. Rc6 {[%clk
0:00:39.4]} 43... Bxe7 {[%clk 0:00:04]} 44. Rxc3 {[%clk 0:00:39.8]} 44... Nf6+
{[%clk 0:00:04.4]} 45. Kf3 {[%clk 0:00:40.1]} 45... Kxh6 {[%clk 0:00:03.9]} 46.
Rc7 {[%clk 0:00:40.6]} 46... Nd5 {[%clk 0:00:02.7]} 47. Rd7 {[%clk 0:00:39.3]}
1-0